[Event "*** Qualifier 1: Titled Tuesday 3|2 Blitz"]
[Site "Chess.com"]
[Date "2017.04.04"]
[Round "5"]
[White "ecwinslow"]
[Black "Swarajan"]
[Result "1-0"]
[WhiteElo "2079"]
[BlackElo "1885"]
[TimeControl "180+2"]
[EndTime "14:10:44 PDT"]
[Termination "ecwinslow won by resignation"]

1. d4 {[%clk 0:03:02]} 1... Nf6 {[%clk 0:02:59.2]} 2. c4 {[%clk 0:03:02.1]} 2...
c5 {[%clk 0:02:59.1]} 3. d5 {[%clk 0:03:02.3]} 3... g6 {[%clk 0:03:00]} 4. Nc3
{[%clk 0:03:01.1]} 4... Bg7 {[%clk 0:03:01]} 5. e4 {[%clk 0:03:00.9]} 5... O-O
{[%clk 0:03:00.3]} 6. h3 {[%clk 0:02:53.2]} 6... e6 {[%clk 0:02:54.3]} 7. Nf3
{[%clk 0:02:38.8]} 7... exd5 {[%clk 0:02:54.1]} 8. cxd5 {[%clk 0:02:37.5]} 8...
Re8 {[%clk 0:02:49.2]} 9. Bd3 {[%clk 0:02:38]} 9... c4 {[%clk 0:02:46.5]} 10.
Bc2 {[%clk 0:02:37.1]} 10... Na6 {[%clk 0:02:42.7]} 11. O-O {[%clk 0:02:32.5]}
11... Nc7 {[%clk 0:02:43.2]} 12. e5 {[%clk 0:02:29]} 12... Nh5 {[%clk
0:02:31.7]} 13. g4 {[%clk 0:02:27.1]} 13... Bxe5 {[%clk 0:02:30.8]} 14. gxh5
{[%clk 0:02:27.2]} 14... d6 {[%clk 0:02:31.6]} 15. Kg2 {[%clk 0:02:13.3]} 15...
gxh5 {[%clk 0:02:10.3]} 16. Ng5 {[%clk 0:02:07.2]} 16... f5 {[%clk 0:02:00.6]}
17. Qxh5 {[%clk 0:02:04.5]} 17... Qe7 {[%clk 0:01:59.2]} 18. f4 {[%clk
0:01:59.2]} 18... Bd4 {[%clk 0:01:50.7]} 19. Re1 {[%clk 0:01:53.1]} 19... Ne6
{[%clk 0:01:23]} 20. dxe6 {[%clk 0:01:48.6]} 20... Bxc3 {[%clk 0:01:08.6]} 21.
bxc3 {[%clk 0:01:40.2]} 21... b5 {[%clk 0:00:58.5]} 22. Kh2 {[%clk 0:01:37.1]}
22... Bb7 {[%clk 0:00:37.2]} 23. Be3 {[%clk 0:01:31.9]} 23... d5 {[%clk
0:00:20]} 24. Bd4 {[%clk 0:01:27.5]} 24... Rf8 {[%clk 0:00:16.1]} 25. Nxh7
{[%clk 0:01:19.4]} 25... Qxh7 {[%clk 0:00:16]} 26. Qg5+ {[%clk 0:01:17.7]} 1-0

[Event "*** Qualifier 1: Titled Tuesday 3|2 Blitz"]
[Site "Chess.com"]
[Date "2017.04.04"]
[Round "5"]
[White "hypert"]
[Black "Usurpov"]
[Result "0-1"]
[WhiteElo "2256"]
[BlackElo "2285"]
[TimeControl "180+2"]
[EndTime "14:10:58 PDT"]
[Termination "Usurpov won by checkmate"]

1. d4 {[%clk 0:03:02]} 1... Nf6 {[%clk 0:03:00.4]} 2. Bg5 {[%clk 0:03:02.2]}
2... g6 {[%clk 0:02:59]} 3. Bxf6 {[%clk 0:03:02.8]} 3... exf6 {[%clk 0:03:00.9]}
4. e3 {[%clk 0:03:03.1]} 4... f5 {[%clk 0:02:57.7]} 5. Bd3 {[%clk 0:03:04.5]}
5... Bg7 {[%clk 0:02:58.7]} 6. c4 {[%clk 0:03:04.9]} 6... O-O {[%clk 0:02:59.7]}
7. Nc3 {[%clk 0:03:06.4]} 7... d6 {[%clk 0:03:00.8]} 8. Nge2 {[%clk 0:03:07.5]}
8... Re8 {[%clk 0:03:02.1]} 9. Qc2 {[%clk 0:03:08.9]} 9... Nd7 {[%clk
0:03:02.3]} 10. O-O-O {[%clk 0:03:10.3]} 10... Nf6 {[%clk 0:03:02.1]} 11. Kb1
{[%clk 0:03:11.8]} 11... Qe7 {[%clk 0:03:02.5]} 12. h3 {[%clk 0:03:11.3]} 12...
c6 {[%clk 0:03:02.7]} 13. Rdg1 {[%clk 0:03:10]} 13... Ne4 {[%clk 0:02:58.8]} 14.
Bxe4 {[%clk 0:02:59.8]} 14... fxe4 {[%clk 0:02:59.1]} 15. g4 {[%clk 0:03:01.3]}
15... a6 {[%clk 0:02:58.4]} 16. h4 {[%clk 0:03:02.5]} 16... b5 {[%clk
0:02:57.8]} 17. cxb5 {[%clk 0:02:57.3]} 17... axb5 {[%clk 0:02:58.5]} 18. g5
{[%clk 0:02:52.4]} 18... b4 {[%clk 0:02:36.6]} 19. Nd1 {[%clk 0:02:52.6]} 19...
Ba6 {[%clk 0:02:36.8]} 20. Nc1 {[%clk 0:02:52]} 20... c5 {[%clk 0:02:36.2]} 21.
dxc5 {[%clk 0:02:42.9]} 21... dxc5 {[%clk 0:02:38.1]} 22. h5 {[%clk 0:02:43.4]}
22... c4 {[%clk 0:02:31.1]} 23. hxg6 {[%clk 0:02:44.2]} 23... hxg6 {[%clk
0:02:33]} 24. Rh4 {[%clk 0:02:43.9]} 24... b3 {[%clk 0:02:31.2]} 25. axb3 {[%clk
0:02:32.5]} 25... cxb3 {[%clk 0:02:33.1]} 26. Qxb3 {[%clk 0:02:33.7]} 26... Rec8
{[%clk 0:02:11.5]} 27. Rgh1 {[%clk 0:02:10.1]} 27... Qc7 {[%clk 0:01:47.2]} 28.
Nc3 {[%clk 0:01:54.2]} 28... Rab8 {[%clk 0:01:44.5]} 29. Nd5 {[%clk 0:01:40]}
29... Rxb3 {[%clk 0:00:59.2]} 30. Nxc7 {[%clk 0:01:39.3]} 30... Rxb2+ {[%clk
0:00:58.5]} 31. Ka1 {[%clk 0:01:36.3]} 31... Rxc7 {[%clk 0:00:59.1]} 32. Rh7
{[%clk 0:01:33.3]} 32... Rxf2+ {[%clk 0:00:45.4]} 33. Kb1 {[%clk 0:01:31]} 33...
Rb7+ {[%clk 0:00:45.2]} 34. Nb3 {[%clk 0:01:30.2]} 34... Rxb3+ {[%clk
0:00:44.1]} 35. Kc1 {[%clk 0:01:31.4]} 35... Bd3 {[%clk 0:00:41.7]} 36. Rxg7+
{[%clk 0:01:26.9]} 36... Kxg7 {[%clk 0:00:43.6]} 37. Rh7+ {[%clk 0:01:23.8]}
37... Kxh7 {[%clk 0:00:44.5]} 38. Kd1 {[%clk 0:01:22.7]} 38... Rb1# {[%clk
0:00:46.4]} 0-1

[Event "*** Qualifier 1: Titled Tuesday 3|2 Blitz"]
[Site "Chess.com"]
[Date "2017.04.04"]
[Round "5"]
[White "HansCoolNiemann"]
[Black "VerdeNotte"]
[Result "1-0"]
[WhiteElo "2331"]
[BlackElo "2537"]
[TimeControl "180+2"]
[EndTime "14:11:27 PDT"]
[Termination "HansCoolNiemann won by resignation"]

1. d4 {[%clk 0:02:02.7]} 1... Nf6 {[%clk 0:02:59.7]} 2. c4 {[%clk 0:02:03.1]}
2... g6 {[%clk 0:02:59.4]} 3. Nc3 {[%clk 0:02:02.4]} 3... Bg7 {[%clk 0:02:59.3]}
4. e4 {[%clk 0:02:01.1]} 4... O-O {[%clk 0:02:59.8]} 5. f4 {[%clk 0:02:02]} 5...
c5 {[%clk 0:02:59.8]} 6. d5 {[%clk 0:01:55]} 6... e6 {[%clk 0:02:51.5]} 7. e5
{[%clk 0:01:52.2]} 7... Nh5 {[%clk 0:02:48]} 8. Nf3 {[%clk 0:01:49.5]} 8... exd5
{[%clk 0:02:47.5]} 9. g4 {[%clk 0:01:47.5]} 9... d4 {[%clk 0:02:44]} 10. Nd5
{[%clk 0:01:45.3]} 10... d6 {[%clk 0:02:37.7]} 11. gxh5 {[%clk 0:01:42.1]} 11...
dxe5 {[%clk 0:02:37.4]} 12. fxe5 {[%clk 0:01:41.3]} 12... Bg4 {[%clk 0:02:32.8]}
13. h6 {[%clk 0:01:39.5]} 13... Bxe5 {[%clk 0:02:25.6]} 14. Bg2 {[%clk
0:01:39.5]} 14... Qd6 {[%clk 0:02:06.8]} 15. Qd2 {[%clk 0:01:35.8]} 15... Bxf3
{[%clk 0:01:39.7]} 16. Bxf3 {[%clk 0:01:33.4]} 16... Nc6 {[%clk 0:01:37.3]} 17.
O-O {[%clk 0:01:32.5]} 17... Rae8 {[%clk 0:01:34]} 18. Qg2 {[%clk 0:01:29.4]}
18... d3 {[%clk 0:01:30.6]} 19. Kh1 {[%clk 0:01:28.3]} 19... Nd4 {[%clk
0:01:24.3]} 20. Be4 {[%clk 0:01:27.1]} 20... Nc2 {[%clk 0:01:07.1]} 21. Rb1
{[%clk 0:01:24.7]} 21... Nb4 {[%clk 0:00:51.4]} 22. Nxb4 {[%clk 0:01:22]} 22...
cxb4 {[%clk 0:00:52.5]} 23. Bxb7 {[%clk 0:01:21.7]} 23... Bd4 {[%clk 0:00:44.2]}
24. Bf4 {[%clk 0:01:17.9]} 24... Qc5 {[%clk 0:00:40.6]} 25. Bd5 {[%clk
0:01:14.6]} 25... Re2 {[%clk 0:00:40.4]} 26. Qg3 {[%clk 0:01:05.7]} 26... d2
{[%clk 0:00:33.7]} 27. Bd6 {[%clk 0:01:01.7]} 27... Qc8 {[%clk 0:00:19.1]} 28.
Bxf8 {[%clk 0:00:59.9]} 28... Qxf8 {[%clk 0:00:21]} 29. Rxf7 {[%clk 0:00:54.1]}
29... Qxh6 {[%clk 0:00:17.9]} 30. Qb8+ {[%clk 0:00:48.3]} 1-0

[Event "*** Qualifier 1: Titled Tuesday 3|2 Blitz"]
[Site "Chess.com"]
[Date "2017.04.04"]
[Round "5"]
[White "FairChess_on_YouTube"]
[Black "evgenyermolaev"]
[Result "1-0"]
[WhiteElo "2730"]
[BlackElo "2384"]
[TimeControl "180+2"]
[EndTime "14:11:54 PDT"]
[Termination "FairChess_on_YouTube won on time"]

1. d4 {[%clk 0:03:02]} 1... Nf6 {[%clk 0:03:00.5]} 2. Bg5 {[%clk 0:03:02.4]}
2... d5 {[%clk 0:02:56.7]} 3. Nd2 {[%clk 0:03:02.2]} 3... Nbd7 {[%clk
0:02:56.9]} 4. Ngf3 {[%clk 0:03:01.1]} 4... e6 {[%clk 0:02:51.8]} 5. e3 {[%clk
0:03:01.2]} 5... c5 {[%clk 0:02:52.8]} 6. c3 {[%clk 0:03:00.9]} 6... h6 {[%clk
0:02:50.7]} 7. Bh4 {[%clk 0:03:01.3]} 7... Bd6 {[%clk 0:02:51.8]} 8. Bd3 {[%clk
0:03:00.7]} 8... O-O {[%clk 0:02:52.4]} 9. O-O {[%clk 0:02:59.3]} 9... Qc7
{[%clk 0:02:52.4]} 10. Rc1 {[%clk 0:02:56.3]} 10... b6 {[%clk 0:02:50.4]} 11. c4
{[%clk 0:02:50.5]} 11... Bb7 {[%clk 0:02:17.4]} 12. cxd5 {[%clk 0:02:50.4]}
12... Nxd5 {[%clk 0:02:16.2]} 13. Ne4 {[%clk 0:02:50.7]} 13... f5 {[%clk
0:01:45.8]} 14. Nxd6 {[%clk 0:02:47.2]} 14... Qxd6 {[%clk 0:01:46.8]} 15. Bg3
{[%clk 0:02:33]} 15... Qe7 {[%clk 0:01:44.8]} 16. Bb5 {[%clk 0:02:28.2]} 16...
Rac8 {[%clk 0:01:35.2]} 17. Qa4 {[%clk 0:02:23.6]} 17... N7f6 {[%clk 0:01:30.6]}
18. Ne5 {[%clk 0:02:24.1]} 18... a6 {[%clk 0:01:18.4]} 19. Be2 {[%clk
0:02:19.2]} 19... Qe8 {[%clk 0:01:13]} 20. Qxe8 {[%clk 0:02:17]} 20... Rfxe8
{[%clk 0:01:09.4]} 21. dxc5 {[%clk 0:02:13.4]} 21... bxc5 {[%clk 0:01:06.6]} 22.
Nc4 {[%clk 0:02:11.3]} 22... Ne4 {[%clk 0:01:01.4]} 23. Nd6 {[%clk 0:02:08.1]}
23... Nxd6 {[%clk 0:00:56.1]} 24. Bxd6 {[%clk 0:02:10]} 24... Rc6 {[%clk
0:00:28]} 25. Be5 {[%clk 0:02:04.4]} 25... Rec8 {[%clk 0:00:20.4]} 26. Rfd1
{[%clk 0:01:59]} 26... Rb6 {[%clk 0:00:21.5]} 27. b3 {[%clk 0:01:59.4]} 27... a5
{[%clk 0:00:20.6]} 28. Bc4 {[%clk 0:01:55.9]} 28... Kf7 {[%clk 0:00:21.1]} 29.
f3 {[%clk 0:01:54.2]} 29... a4 {[%clk 0:00:17.6]} 30. bxa4 {[%clk 0:01:44]}
30... Ra8 {[%clk 0:00:16.9]} 31. Bb5 {[%clk 0:01:40.1]} 31... Bc6 {[%clk
0:00:08.6]} 32. e4 {[%clk 0:01:36.7]} 32... fxe4 {[%clk 0:00:05.2]} 33. fxe4
{[%clk 0:01:37.6]} 33... Nb4 {[%clk 0:00:06]} 34. Rxc5 {[%clk 0:01:34.2]} 34...
Bxb5 {[%clk 0:00:07.2]} 35. axb5 {[%clk 0:01:31.2]} 35... Rxa2 {[%clk
0:00:07.3]} 36. Rc7+ {[%clk 0:01:28]} 36... Kg6 {[%clk 0:00:06.2]} 37. Rxg7+
{[%clk 0:01:23.5]} 37... Kh5 {[%clk 0:00:07.2]} 38. Bf6 {[%clk 0:01:22.4]} 1-0

[Event "*** Qualifier 1: Titled Tuesday 3|2 Blitz"]
[Site "Chess.com"]
[Date "2017.04.04"]
[Round "5"]
[White "VladDobrov"]
[Black "jcibarra"]
[Result "0-1"]
[WhiteElo "2525"]
[BlackElo "2664"]
[TimeControl "180+2"]
[EndTime "14:11:59 PDT"]
[Termination "jcibarra won by resignation"]

1. d4 {[%clk 0:03:02]} 1... Nf6 {[%clk 0:03:00.6]} 2. c4 {[%clk 0:03:03.4]} 2...
d6 {[%clk 0:02:59.7]} 3. Nf3 {[%clk 0:03:03.7]} 3... g6 {[%clk 0:03:00.9]} 4.
Nc3 {[%clk 0:03:02.2]} 4... Bf5 {[%clk 0:03:02.1]} 5. g3 {[%clk 0:02:51.5]} 5...
Ne4 {[%clk 0:03:02.8]} 6. Bg2 {[%clk 0:02:48.1]} 6... Nxc3 {[%clk 0:03:03.5]} 7.
bxc3 {[%clk 0:02:50]} 7... Be4 {[%clk 0:03:05.4]} 8. O-O {[%clk 0:02:49.7]} 8...
Bg7 {[%clk 0:03:06.9]} 9. Qb3 {[%clk 0:02:49.8]} 9... O-O {[%clk 0:03:07.5]} 10.
a4 {[%clk 0:02:46]} 10... b6 {[%clk 0:03:08.3]} 11. a5 {[%clk 0:02:46.5]} 11...
Nc6 {[%clk 0:03:09.4]} 12. a6 {[%clk 0:02:29.8]} 12... Na5 {[%clk 0:03:08.6]}
13. Qa2 {[%clk 0:02:23.3]} 13... Qc8 {[%clk 0:03:08.9]} 14. Bg5 {[%clk
0:02:20.9]} 14... h6 {[%clk 0:02:53.9]} 15. Bxe7 {[%clk 0:01:59.1]} 15... Re8
{[%clk 0:02:54.4]} 16. Bh4 {[%clk 0:02:00.5]} 16... g5 {[%clk 0:02:55.4]} 17.
Bxg5 {[%clk 0:02:01.6]} 17... hxg5 {[%clk 0:02:57]} 18. Nxg5 {[%clk 0:02:02.6]}
18... Bxg2 {[%clk 0:02:53.3]} 19. Kxg2 {[%clk 0:02:04.5]} 19... Qxa6 {[%clk
0:02:49.9]} 20. Qc2 {[%clk 0:02:02.3]} 20... Qxc4 {[%clk 0:02:47.5]} 21. Qh7+
{[%clk 0:02:01.2]} 21... Kf8 {[%clk 0:02:47.6]} 22. e4 {[%clk 0:02:02.1]} 22...
f6 {[%clk 0:02:33]} 23. Qf5 {[%clk 0:02:01.9]} 23... Ke7 {[%clk 0:02:03.9]} 24.
Ra4 {[%clk 0:02:01.1]} 24... Qg8 {[%clk 0:01:52.6]} 25. e5 {[%clk 0:01:51.9]}
25... fxg5 {[%clk 0:01:39.2]} 26. Re1 {[%clk 0:01:09.6]} 26... d5 {[%clk
0:01:34.2]} 27. c4 {[%clk 0:01:07.7]} 27... Nxc4 {[%clk 0:01:27.9]} 28. e6
{[%clk 0:01:08]} 28... Red8 {[%clk 0:01:06]} 29. Qxg5+ {[%clk 0:00:54.6]} 29...
Bf6 {[%clk 0:01:06.8]} 30. Qf4 {[%clk 0:00:56.5]} 30... Rd6 {[%clk 0:01:07.3]}
31. h4 {[%clk 0:00:55.2]} 31... a5 {[%clk 0:01:07.5]} 32. Qf3 {[%clk 0:00:53.3]}
32... Rf8 {[%clk 0:01:05]} 33. Rxc4 {[%clk 0:00:39.7]} 33... dxc4 {[%clk
0:01:03.2]} 34. Qb7 {[%clk 0:00:41.6]} 34... Rc8 {[%clk 0:00:58.3]} 35. d5
{[%clk 0:00:41.5]} 35... c3 {[%clk 0:00:54.5]} 36. Re2 {[%clk 0:00:41]} 36...
Bxh4 {[%clk 0:00:46.7]} 37. Re4 {[%clk 0:00:37.6]} 37... Bf6 {[%clk 0:00:43]}
38. Rc4 {[%clk 0:00:38.3]} 38... Qd8 {[%clk 0:00:43]} 39. Qa6 {[%clk 0:00:35.3]}
39... Rxd5 {[%clk 0:00:43.1]} 0-1

[Event "*** Qualifier 1: Titled Tuesday 3|2 Blitz"]
[Site "Chess.com"]
[Date "2017.04.04"]
[Round "5"]
[White "FearNoEvil12"]
[Black "TooOldTooSlow70"]
[Result "0-1"]
[WhiteElo "2093"]
[BlackElo "2309"]
[TimeControl "180+2"]
[EndTime "14:12:00 PDT"]
[Termination "TooOldTooSlow70 won by checkmate"]

1. e4 {[%clk 0:03:02]} 1... e5 {[%clk 0:02:59.6]} 2. d4 {[%clk 0:03:02.1]} 2...
exd4 {[%clk 0:02:59.4]} 3. Bc4 {[%clk 0:03:03.7]} 3... d6 {[%clk 0:02:57.3]} 4.
Nf3 {[%clk 0:03:04.8]} 4... Nf6 {[%clk 0:02:57.7]} 5. Nxd4 {[%clk 0:03:02.6]}
5... Be7 {[%clk 0:02:57.9]} 6. Nc3 {[%clk 0:03:02.4]} 6... O-O {[%clk
0:02:58.8]} 7. h3 {[%clk 0:03:02.2]} 7... Nxe4 {[%clk 0:02:57.5]} 8. Nxe4 {[%clk
0:02:51.8]} 8... d5 {[%clk 0:02:58.4]} 9. O-O {[%clk 0:02:47.8]} 9... dxc4
{[%clk 0:02:56.9]} 10. Be3 {[%clk 0:02:45.3]} 10... Qd5 {[%clk 0:02:31.7]} 11.
Qf3 {[%clk 0:02:40.5]} 11... Be6 {[%clk 0:02:25.3]} 12. Rad1 {[%clk 0:02:36.5]}
12... Nc6 {[%clk 0:02:21.2]} 13. c3 {[%clk 0:01:53.7]} 13... Ne5 {[%clk
0:02:11.8]} 14. Qf4 {[%clk 0:01:53.6]} 14... Nd3 {[%clk 0:02:10.6]} 15. Qf3
{[%clk 0:01:43.5]} 15... Nxb2 {[%clk 0:02:10.5]} 16. Rd2 {[%clk 0:01:40]} 16...
Nd3 {[%clk 0:02:09.8]} 17. Nxe6 {[%clk 0:01:31.7]} 17... fxe6 {[%clk 0:02:08.9]}
18. Qg4 {[%clk 0:01:30.7]} 18... Qf5 {[%clk 0:02:00.4]} 19. Bd4 {[%clk
0:01:14.4]} 19... Qxg4 {[%clk 0:01:58.4]} 20. hxg4 {[%clk 0:01:14.8]} 20... b5
{[%clk 0:01:46.3]} 21. Rb1 {[%clk 0:01:12.3]} 21... c6 {[%clk 0:01:46.5]} 22. g3
{[%clk 0:01:03.6]} 22... a6 {[%clk 0:01:38.3]} 23. f4 {[%clk 0:01:03.6]} 23...
Rad8 {[%clk 0:01:34.8]} 24. Rh2 {[%clk 0:00:56.6]} 24... c5 {[%clk 0:01:28.9]}
25. Be3 {[%clk 0:00:56.2]} 25... b4 {[%clk 0:01:30.3]} 26. Kg2 {[%clk
0:00:49.2]} 26... h6 {[%clk 0:01:19.5]} 27. Rbh1 {[%clk 0:00:46.6]} 27... b3
{[%clk 0:01:14.3]} 28. axb3 {[%clk 0:00:45.7]} 28... cxb3 {[%clk 0:01:16.2]} 29.
g5 {[%clk 0:00:46.1]} 29... hxg5 {[%clk 0:01:13.9]} 30. fxg5 {[%clk 0:00:45.7]}
30... Kf7 {[%clk 0:01:14.7]} 31. Rh7 {[%clk 0:00:26]} 31... b2 {[%clk
0:01:12.3]} 32. R1h6 {[%clk 0:00:19.8]} 32... b1=Q {[%clk 0:01:05.2]} 33. g6+
{[%clk 0:00:20.1]} 33... Ke8 {[%clk 0:01:04.7]} 34. Rxg7 {[%clk 0:00:21.2]}
34... Ne1+ {[%clk 0:01:03.6]} 35. Kh3 {[%clk 0:00:19.8]} 35... Qxe4 {[%clk
0:01:04.3]} 36. Rhh7 {[%clk 0:00:14.8]} 36... Rd7 {[%clk 0:00:56.2]} 37. Bg5
{[%clk 0:00:13.8]} 37... Qf5+ {[%clk 0:00:55.1]} 38. g4 {[%clk 0:00:14]} 38...
Qf3+ {[%clk 0:00:53.6]} 39. Kh4 {[%clk 0:00:14.4]} 39... Ng2+ {[%clk 0:00:54.5]}
40. Kh5 {[%clk 0:00:15.6]} 40... Qh3+ {[%clk 0:00:55.7]} 41. Bh4 {[%clk
0:00:15.6]} 41... Qxh4# {[%clk 0:00:56.9]} 0-1

[Event "*** Qualifier 1: Titled Tuesday 3|2 Blitz"]
[Site "Chess.com"]
[Date "2017.04.04"]
[Round "5"]
[White "RobertoJBM"]
[Black "Kacparov"]
[Result "0-1"]
[WhiteElo "2408"]
[BlackElo "2612"]
[TimeControl "180+2"]
[EndTime "14:12:04 PDT"]
[Termination "Kacparov won by checkmate"]

1. d4 {[%clk 0:03:02]} 1... Nf6 {[%clk 0:03:00.6]} 2. Nf3 {[%clk 0:03:02.3]}
2... d6 {[%clk 0:03:00.1]} 3. c4 {[%clk 0:03:02.1]} 3... g6 {[%clk 0:02:59.6]}
4. Nc3 {[%clk 0:03:02.8]} 4... Bg7 {[%clk 0:03:00.2]} 5. e4 {[%clk 0:03:04.1]}
5... O-O {[%clk 0:03:01.5]} 6. Be2 {[%clk 0:03:05.6]} 6... Na6 {[%clk
0:03:00.7]} 7. O-O {[%clk 0:03:06.4]} 7... c5 {[%clk 0:03:01.5]} 8. d5 {[%clk
0:03:06.1]} 8... e6 {[%clk 0:03:02.8]} 9. h3 {[%clk 0:03:01.9]} 9... exd5 {[%clk
0:03:03.2]} 10. exd5 {[%clk 0:03:01.8]} 10... Nc7 {[%clk 0:03:04.2]} 11. Bf4
{[%clk 0:03:02.3]} 11... Re8 {[%clk 0:03:03.2]} 12. Re1 {[%clk 0:03:03]} 12...
Ne4 {[%clk 0:03:01.9]} 13. Nxe4 {[%clk 0:03:01]} 13... Rxe4 {[%clk 0:03:03.8]}
14. Bg5 {[%clk 0:03:01.4]} 14... Bf6 {[%clk 0:03:02.7]} 15. Bxf6 {[%clk
0:02:58.4]} 15... Qxf6 {[%clk 0:03:03.4]} 16. Qb3 {[%clk 0:02:51.2]} 16... b6
{[%clk 0:03:04.2]} 17. Bd3 {[%clk 0:02:44.6]} 17... Rxe1+ {[%clk 0:03:04.7]} 18.
Nxe1 {[%clk 0:02:46.5]} 18... Bd7 {[%clk 0:03:05.3]} 19. Nc2 {[%clk 0:02:42.6]}
19... Re8 {[%clk 0:03:05.5]} 20. Re1 {[%clk 0:02:43.2]} 20... Rxe1+ {[%clk
0:03:05.2]} 21. Nxe1 {[%clk 0:02:45.1]} 21... Qf4 {[%clk 0:03:06]} 22. Qc2
{[%clk 0:02:43.3]} 22... a6 {[%clk 0:03:03.4]} 23. b3 {[%clk 0:02:42.2]} 23...
b5 {[%clk 0:03:04.3]} 24. Qe2 {[%clk 0:02:39.5]} 24... Kf8 {[%clk 0:03:02.1]}
25. Nc2 {[%clk 0:02:33.3]} 25... b4 {[%clk 0:02:54.8]} 26. Ne3 {[%clk 0:02:33]}
26... a5 {[%clk 0:02:54.3]} 27. g3 {[%clk 0:02:33.5]} 27... Qd4 {[%clk
0:02:54.4]} 28. h4 {[%clk 0:02:33.5]} 28... h5 {[%clk 0:02:54.6]} 29. Kg2 {[%clk
0:02:22.1]} 29... a4 {[%clk 0:02:53.2]} 30. Qc2 {[%clk 0:02:18.2]} 30... a3
{[%clk 0:02:54.1]} 31. Qe2 {[%clk 0:02:17.6]} 31... Ne8 {[%clk 0:02:54]} 32. Nc2
{[%clk 0:02:14.7]} 32... Qb2 {[%clk 0:02:52.5]} 33. Ne3 {[%clk 0:02:13.6]} 33...
Qd4 {[%clk 0:02:50.8]} 34. Nc2 {[%clk 0:02:13.8]} 34... Qc3 {[%clk 0:02:52]} 35.
Ne3 {[%clk 0:02:04.6]} 35... Nf6 {[%clk 0:02:51.6]} 36. Qc2 {[%clk 0:02:05.5]}
36... Qd4 {[%clk 0:02:51.4]} 37. Kg1 {[%clk 0:01:58.8]} 37... Kg7 {[%clk
0:02:51.9]} 38. Kh2 {[%clk 0:01:59]} 38... Bg4 {[%clk 0:02:41.8]} 39. Kg2 {[%clk
0:01:58.7]} 39... Bc8 {[%clk 0:02:42.1]} 40. Kg1 {[%clk 0:01:56.3]} 40... Bd7
{[%clk 0:02:42.4]} 41. Kg2 {[%clk 0:01:57.4]} 41... Bg4 {[%clk 0:02:36]} 42. Kg1
{[%clk 0:01:57]} 42... Bf3 {[%clk 0:02:37.1]} 43. Nf1 {[%clk 0:01:42.4]} 43...
Ne4 {[%clk 0:02:16.3]} 44. Nh2 {[%clk 0:01:20.8]} 44... Bd1 {[%clk 0:02:15.5]}
45. Nf3 {[%clk 0:00:32.3]} 45... Bxc2 {[%clk 0:02:08.1]} 46. Nxd4 {[%clk
0:00:32.9]} 46... Bxd3 {[%clk 0:02:09.3]} 47. Nb5 {[%clk 0:00:33.1]} 47... Bb1
{[%clk 0:02:07]} 48. f3 {[%clk 0:00:34.3]} 48... Bxa2 {[%clk 0:02:05.7]} 49.
fxe4 {[%clk 0:00:35.7]} 49... Bxb3 {[%clk 0:02:06.9]} 50. e5 {[%clk 0:00:35.7]}
50... a2 {[%clk 0:02:07.8]} 51. exd6 {[%clk 0:00:36.6]} 51... a1=Q+ {[%clk
0:02:08.9]} 52. Kf2 {[%clk 0:00:38]} 52... Qf6+ {[%clk 0:02:07.6]} 53. Ke3
{[%clk 0:00:37.3]} 53... Bxc4 {[%clk 0:02:08.7]} 54. Nc7 {[%clk 0:00:38.3]}
54... Qd4+ {[%clk 0:02:08.1]} 55. Kf3 {[%clk 0:00:35.2]} 55... Bxd5+ {[%clk
0:02:09.1]} 56. Ke2 {[%clk 0:00:35.2]} 56... Bc6 {[%clk 0:02:09.4]} 57. d7
{[%clk 0:00:34.5]} 57... Bxd7 {[%clk 0:02:09.9]} 58. g4 {[%clk 0:00:33.3]} 58...
Bxg4+ {[%clk 0:02:10.8]} 59. Kf1 {[%clk 0:00:33.4]} 59... Qd2 {[%clk 0:02:08.2]}
60. Ne8+ {[%clk 0:00:33.1]} 60... Kh8 {[%clk 0:02:07.1]} 61. Nf6 {[%clk
0:00:35]} 61... Bf3 {[%clk 0:02:07.3]} 62. Ne4 {[%clk 0:00:34.7]} 62... Qe2+
{[%clk 0:02:07.9]} 63. Kg1 {[%clk 0:00:36.5]} 63... Qg2# {[%clk 0:02:09.1]} 0-1